bitfinex-derivatives/quotes_SOLF0:USTF0_20250613
["timestamp","ask_amount","ask_price","bid_price","bid_amount"]
[1749807671505,41.40795209,144.76,144.68,36.4]
[1749807671700,5.00795209,144.73,144.68,36.4]
[1749807671898,0.05057151,144.72,144.69,0.04413906]
[1749807672606,6.9079,144.71,144.69,0.04413906]
[1749807672798,0.05057151,144.72,144.69,0.04413906]
[1749807673698,0.05057151,144.72,144.7,6.9077]
[1749807674901,0.05057151,144.72,144.69,6.95243906]
[1749807675611,6.95777151,144.72,144.69,6.95243906]
[1749807676615,0.05057151,144.72,144.69,0.04413906]
[1749807677713,6.9081,144.7,144.69,0.04413906]
[1749807678908,0.05057151,144.72,144.69,0.04413906]
[1749807679912,0.05057151,144.72,144.7,5.01085713]
[1749807680217,441.17355713,144.8,144.75,6.9056]
[1749807680515,441.17355713,144.8,144.73,5.01085713]
[1749807680715,6.9053,144.76,144.73,5.01085713]
[1749807680913,6.9053,144.76,144.73,11.91705713]
[1749807681117,6.9057,144.75,144.73,6.95610834]
[1749807681315,5.05906071,144.76,144.73,0.04990834]
[1749807681905,11.91705713,144.74,144.73,0.04990834]
[1749807682416,41.41906071,144.76,144.73,0.04990834]
[1749807682606,0.04820358,144.76,144.73,0.04990834]
[1749807683010,0.04820358,144.76,144.74,6.9057]
[1749807683214,0.04820358,144.76,144.74,8.5821554]
[1749807683409,0.04820358,144.76,144.74,10.9336554]
[1749807683614,0.04820358,144.76,144.75,6.9057]
[1749807690923,0.04820358,144.76,144.74,2.3515]
[1749807691526,0.04820358,144.76,144.75,6.9057]
[1749807693432,0.04820358,144.76,144.75,13.8187]
[1749807693647,8.5821554,144.82,144.75,6.913]
[1749807693927,36.36,144.84,144.77,8.5821554]
[1749807694119,9.1078,144.85,144.78,36.36]
[1749807694319,2.2067,144.85,144.78,36.36]
[1749807694525,0.04541451,144.83,144.8,0.05060778]
[1749807694836,0.04541451,144.83,144.81,6.9025]
[1749807696236,0.04541451,144.83,144.82,6.9023]
[1749807697327,0.04541451,144.83,144.8,0.05060778]
[1749807698321,0.04541451,144.83,144.82,6.9023]
[1749807700531,0.04541451,144.83,144.81,6.9026]
[1749807700929,0.04541451,144.83,144.8,0.05060778]
[1749807702334,6.94751451,144.83,144.8,6.95370778]
[1749807703138,0.04541451,144.83,144.81,6.9028]
[1749807703340,0.04541451,144.83,144.8,0.05060778]
[1749807703638,0.04541451,144.83,144.82,6.9023]
[1749807705438,0.04541451,144.83,144.81,13.8156]
[1749807705638,0.04541451,144.83,144.81,6.913]
[1749807706235,6.9023,144.82,144.81,6.913]
[1749807706538,5.00320444,144.82,144.8,0.05060778]
[1749807707341,6.9028,144.81,144.8,0.05060778]
[1749807707739,6.9026,144.82,144.8,0.05060778]
[1749807707937,0.04541451,144.83,144.8,0.05060778]
[1749807708530,0.04541451,144.83,144.8,6.96360778]
[1749807708935,0.04541451,144.83,144.82,6.9023]
[1749807710840,0.04541451,144.83,144.81,6.9026]
[1749807711240,0.04541451,144.83,144.8,6.96360778]
[1749807711738,0.04541451,144.83,144.82,6.9023]
[1749807714437,0.00170967,144.83,144.82,43.1823]
[1749807716537,0.00170967,144.83,144.82,36.28]
[1749807716737,8.57747569,144.83,144.81,6.913]
[1749807716945,8.57747569,144.83,144.8,0.05060778]
[1749807717145,8.57576602,144.81,144.75,36.28]
[1749807717451,8.57576602,144.81,144.76,6.905]
[1749807717648,6.9041,144.79,144.76,6.905]
[1749807718048,6.95489786,144.79,144.76,6.95771492]
[1749807719051,6.95489786,144.79,144.77,6.9047]
[1749807719355,6.95489786,144.79,144.76,0.05271492]
[1749807719553,6.95489786,144.79,144.76,6.95771492]
[1749807720253,0.05079786,144.79,144.76,0.05271492]
[1749807720758,0.05079786,144.79,144.78,6.9043]
[1749807720948,0.05079786,144.79,144.76,0.05271492]
[1749807722555,6.9043,144.78,144.76,0.05271492]
[1749807723056,6.95479786,144.79,144.76,6.95771492]
[1749807723356,0.05079786,144.79,144.76,0.05271492]
[1749807724154,0.05079786,144.79,144.69,36.3]
[1749807724155,50.49402986,144.78,144.69,36.3]
[1749807724357,8.57576602,144.75,144.69,36.3]
[1749807724555,6.9069,144.73,144.7,6.9078]
[1749807724959,6.95397774,144.73,144.7,6.95830743]
[1749807725157,0.04707774,144.73,144.71,6.9075]
[1749807725457,0.04707774,144.73,144.7,0.05050743]
[1749807725661,0.04707774,144.73,144.72,6.9071]
[1749807727059,0.04707774,144.73,144.7,0.05050743]
[1749807727060,0.04707774,144.73,144.71,6.9074]
[1749807727247,0.04707774,144.73,144.7,0.05050743]
[1749807727453,0.04707774,144.73,144.71,8.57576602]
[1749807727858,0.04707774,144.73,144.72,6.9071]
[1749807730366,0.04707774,144.73,144.71,15.48316602]
[1749807730662,0.04707774,144.73,144.7,9.20660743]
[1749807731356,0.04707774,144.73,144.71,5.00934317]
[1749807731759,0.04707774,144.73,144.72,6.9071]
[1749807733866,0.04707774,144.73,144.72,13.8201]
[1749807735757,2.2959,144.8,144.76,6.9049]
[1749807736061,6.904,144.79,144.76,6.9049]
[1749807736861,5.06006233,144.79,144.76,0.04720123]
[1749807737054,5.00934317,144.77,144.7,38.5431]
[1749807737255,5.00934317,144.77,144.7,36.3]
[1749807737665,6.9061,144.75,144.71,6.9071]
[1749807738059,0.05249451,144.74,144.72,0.04818681]
[1749807738453,0.05249451,144.74,144.73,5.00934317]
[1749807738671,9.451e-05,144.74,144.73,5.00934317]
[1749807738861,9.451e-05,144.74,144.73,18.82894317]
[1749807742364,9.451e-05,144.74,144.73,13.8196]
[1749807744463,9.451e-05,144.74,144.73,6.913]
[1749807744866,9.451e-05,144.74,144.72,6.96118681]
[1749807745171,9.451e-05,144.74,144.73,6.9066]
[1749807745773,9.451e-05,144.74,144.72,6.96118681]
[1749807745964,9.451e-05,144.74,144.72,0.04818681]
[1749807746567,9.451e-05,144.74,144.73,6.9066]
[1749807746778,9.451e-05,144.74,144.72,0.04818681]
[1749807747161,6.9066,144.73,144.72,0.04818681]
[1749807747365,9.451e-05,144.74,144.72,0.04818681]
[1749807748773,6.9066,144.73,144.72,0.04818681]
[1749807751077,6.90639451,144.74,144.72,0.04818681]
[1749807752679,9.451e-05,144.74,144.72,0.04818681]
[1749807752871,9.451e-05,144.74,144.72,5.05752998]
[1749807753780,9.451e-05,144.74,144.73,6.9066]
[1749807754077,9.451e-05,144.74,144.72,5.05752998]
[1749807754273,9.451e-05,144.74,144.72,0.04818681]
[1749807754979,6.9066,144.73,144.72,0.04818681]
[1749807756779,9.451e-05,144.74,144.72,0.04818681]
[1749807757578,9.451e-05,144.74,144.73,5.00934317]
[1749807758580,9.451e-05,144.74,144.73,11.91594317]
[1749807761184,9.451e-05,144.74,144.72,0.04818681]
[1749807761884,9.451e-05,144.74,144.72,6.95518681]
[1749807762690,6.90629451,144.74,144.72,6.95518681]
[1749807762885,9.451e-05,144.74,144.72,6.95518681]
[1749807763680,9.451e-05,144.74,144.72,0.04818681]
[1749807764297,6.90649451,144.74,144.72,6.95508681]
[1749807764597,6.90649451,144.74,144.72,0.04818681]
[1749807764798,6.9066,144.73,144.72,0.04818681]
[1749807771697,9.451e-05,144.74,144.7,36.3]
[1749807771698,6.9076,144.71,144.7,36.3]
[1749807771987,6.9076,144.71,144.68,6.9088]
[1749807772696,6.9571314,144.71,144.68,13.87104744]
[1749807773395,6.9571314,144.71,144.68,6.95804744]
[1749807773994,0.0495314,144.71,144.68,0.04924744]
[1749807775084,6.9085,144.69,144.68,0.04924744]
[1749807776591,12.52474318,144.69,144.68,0.04924744]
[1749807776895,6.9085,144.69,144.68,0.04924744]
[1749807779788,5.0156052,144.69,144.6,36.2]
[1749807780094,5.0156052,144.63,144.59,6.913]
[1749807780293,6.9131,144.6,144.57,36.2]
[1749807780496,5.0156052,144.63,144.59,6.9133]
[1749807780694,5.0156052,144.63,144.57,36.2]
[1749807780991,5.05961428,144.61,144.59,0.04541582]
[1749807781498,6.9129,144.6,144.59,0.04541582]
[1749807781695,0.04400908,144.61,144.59,0.04541582]
[1749807781891,6.9128,144.6,144.59,0.04541582]
[1749807783295,6.9143,144.57,144.54,36.2]
[1749807783602,5.02153012,144.6,144.54,36.2]
[1749807783794,6.9135,144.59,144.54,36.2]
[1749807783991,4.6312,144.62,144.57,5.02153012]
[1749807784394,6.96234345,144.61,144.58,0.05166891]
[1749807784789,0.04964345,144.61,144.58,0.05166891]
[1749807784989,6.9131,144.6,144.58,0.05166891]
[1749807785193,0.04964345,144.61,144.58,0.05166891]
[1749807785595,6.96224345,144.61,144.58,0.05166891]
[1749807785796,0.04964345,144.61,144.58,0.05166891]
[1749807786194,6.9129,144.6,144.58,0.05166891]
[1749807786794,6.9133,144.59,144.58,0.05166891]
[1749807787003,0.04964345,144.61,144.58,0.05166891]
[1749807788102,0.04964345,144.61,144.58,6.96546891]
[1749807788305,0.04964345,144.61,144.58,11.98699903]
[1749807788609,6.96244345,144.61,144.58,11.98699903]
[1749807789408,6.9129,144.6,144.58,5.07319903]
[1749807789613,0.04964345,144.61,144.58,5.07319903]
[1749807789614,0.04964345,144.61,144.58,0.05166891]
[1749807790297,6.9132,144.6,144.58,6.96546891]
[1749807790706,0.04964345,144.61,144.58,6.96546891]
[1749807790906,6.96224345,144.61,144.58,6.96546891]
[1749807791100,0.04964345,144.61,144.59,5.02153012]
[1749807791499,0.04964345,144.61,144.6,6.9128]
[1749807792105,6.9102,144.66,144.63,6.9112]
[1749807792506,6.9102,144.66,144.62,5.02153012]
[1749807792708,5.02153012,144.63,144.54,36.22]
[1749807793007,0.05053317,144.6,144.57,0.04597902]
[1749807793311,0.04947149,144.6,144.57,6.96030553]
[1749807793708,6.96237149,144.6,144.57,6.96030553]
[1749807795205,0.04947149,144.6,144.57,0.04630553]
[1749807795918,6.9136,144.59,144.57,0.04630553]
[1749807796603,6.9138,144.58,144.57,0.04630553]
[1749807797003,0.04947149,144.6,144.57,0.04630553]
[1749807797212,0.04947149,144.6,144.58,6.9138]
[1749807797414,0.04947149,144.6,144.57,0.04630553]
[1749807797613,6.96257149,144.6,144.57,6.96030553]
[1749807797814,0.04947149,144.6,144.57,0.04630553]
[1749807798906,6.9138,144.58,144.57,0.04630553]
[1749807801327,6.9136,144.59,144.57,0.04630553]
[1749807801715,0.04947149,144.6,144.57,0.04630553]
[1749807803218,6.96267149,144.6,144.57,6.96060553]
[1749807803524,0.04947149,144.6,144.57,0.04630553]
[1749807804918,6.96277149,144.6,144.57,6.96060553]
[1749807806617,6.9136,144.59,144.57,0.04630553]
[1749807806812,0.04947149,144.6,144.57,0.04630553]
[1749807807317,6.9136,144.59,144.57,0.04630553]
[1749807807518,0.04947149,144.6,144.57,0.04630553]
[1749807807722,6.9133,144.59,144.57,0.04630553]
[1749807808217,0.04947149,144.6,144.57,0.04630553]
[1749807808414,8.65795509,144.6,144.52,1.20371491]
[1749807808608,8.6084836,144.58,144.52,6.9163]
[1749807808811,44.7884836,144.58,144.52,6.9163]
[1749807809007,44.7884836,144.58,144.51,36.18]
[1749807809213,2.3143,144.57,144.51,36.18]
[1749807809413,2.3143,144.57,144.53,0.05067052]
[1749807809618,0.0505278,144.55,144.53,6.96667052]
[1749807810522,0.0505278,144.55,144.54,6.9157]
[1749807810710,0.0505278,144.55,144.53,0.05067052]
[1749807810711,6.9658278,144.55,144.53,0.05067052]
[1749807811319,6.9658278,144.55,144.53,6.96667052]
[1749807811719,6.9157,144.54,144.53,0.05067052]
[1749807827327,6.9157,144.54,144.53,7.052e-05]
[1749807827725,12.43897883,144.54,144.53,7.052e-05]
[1749807828033,9.1286,144.54,144.53,7.052e-05]
[1749807828636,6.9192,144.47,144.45,43.1198]
[1749807829035,5.02462099,144.51,144.45,43.1198]
[1749807829635,6.9189,144.48,144.47,0.04488316]
[1749807831330,0.04948803,144.49,144.47,5.06950415]
[1749807831823,6.96758803,144.49,144.47,5.06950415]
[1749807832032,0.04948803,144.49,144.47,0.04488316]
[1749807832531,6.9186,144.48,144.47,0.04488316]
[1749807833333,6.96788803,144.49,144.47,0.04488316]
[1749807836439,6.96788803,144.49,144.47,6.96378316]
[1749807836735,0.04948803,144.49,144.48,5.02462099]
[1749807837041,0.04948803,144.49,144.48,11.94322099]
[1749807837429,6.9169,144.52,144.48,5.02462099]
[1749807837631,6.9169,144.52,144.5,5.02462099]
[1749807837836,36.16,144.56,144.5,5.02462099]
[1749807838031,36.16,144.56,144.5,11.94202099]
[1749807838437,0.04772617,144.54,144.52,0.04650302]
[1749807838739,6.9165,144.53,144.52,0.04650302]
[1749807839639,0.04772617,144.54,144.52,6.96290302]
[1749807840035,0.04772617,144.54,144.53,6.9162]
[1749807840236,0.04772617,144.54,144.53,11.94082099]
[1749807843439,0.04772617,144.54,144.53,48.10082099]
[1749807844636,0.04772617,144.54,144.53,43.0762]
[1749807844944,0.04772617,144.54,144.52,0.04650302]
[1749807845242,6.9162,144.53,144.52,0.04650302]
[1749807846530,0.04772617,144.54,144.52,5.07112401]
[1749807847245,0.04772617,144.54,144.53,6.9162]
[1749807848544,6.914,144.58,144.52,5.07112401]
[1749807848737,6.914,144.58,144.54,5.02462099]
[1749807848937,6.914,144.58,144.55,6.9151]
[1749807849444,6.96133673,144.58,144.55,6.96726577]
[1749807851046,6.9144,144.57,144.55,0.05216577]
[1749807851346,0.04733673,144.58,144.55,0.05216577]
[1749807851934,6.96133673,144.58,144.55,6.96706577]
[1749807853148,6.9143,144.57,144.55,6.96706577]
[1749807853347,0.04733673,144.58,144.55,6.96706577]
[1749807853749,6.96153673,144.58,144.55,6.96706577]
[1749807853952,0.04733673,144.58,144.55,0.05216577]
[1749807854246,6.9145,144.57,144.55,0.05216577]
[1749807854450,0.04733673,144.58,144.55,0.05216577]
[1749807854744,0.04733673,144.58,144.56,6.9145]
[1749807855340,6.96113673,144.58,144.55,0.05216577]
[1749807856248,0.04733673,144.58,144.55,0.05216577]
[1749807856542,5.02462099,144.57,144.55,0.05216577]
[1749807856737,6.9148,144.56,144.55,0.05216577]
[1749807857838,0.04733673,144.58,144.55,0.05216577]
[1749807858236,0.04733673,144.58,144.55,5.07678676]
[1749807858447,0.04733673,144.58,144.55,41.21678676]
[1749807858646,0.04733673,144.58,144.57,6.9143]
[1749807858850,0.04733673,144.58,144.55,41.21678676]
[1749807859148,0.04733673,144.58,144.56,6.9145]
[1749807859550,0.04733673,144.58,144.55,41.21678676]
[1749807859847,6.96133673,144.58,144.56,6.9147]
[1749807860850,6.9145,144.57,144.55,41.21678676]
[1749807861052,6.9145,144.57,144.55,36.19216577]
[1749807861850,6.96133673,144.58,144.55,36.19216577]
[1749807862045,0.04733673,144.58,144.55,41.21678676]
[1749807862343,0.04733673,144.58,144.56,6.9148]
[1749807862547,0.04733673,144.58,144.55,41.21678676]
[1749807863343,0.04733673,144.58,144.57,6.9143]
[1749807864145,6.96123673,144.58,144.56,6.9145]
[1749807864351,0.04733673,144.58,144.55,41.21678676]
[1749807864650,0.04733673,144.58,144.56,6.9143]
[1749807866741,0.04733673,144.58,144.57,6.9143]
[1749807868653,0.04733673,144.58,144.56,6.9145]
[1749807869960,6.9143,144.57,144.55,43.10516577]
[1749807870150,0.04733673,144.58,144.55,43.10516577]
[1749807871144,0.04733673,144.58,144.56,6.9143]
[1749807871355,0.04733673,144.58,144.55,43.10516577]
[1749807871853,0.04733673,144.58,144.57,6.9143]
[1749807872256,0.04733673,144.58,144.55,43.10516577]
[1749807872452,6.96163673,144.58,144.55,50.02016577]
[1749807874063,6.96163673,144.58,144.56,6.9147]
[1749807874568,0.04733673,144.58,144.55,43.10516577]
[1749807874856,0.04733673,144.58,144.56,6.9145]
[1749807875050,0.04733673,144.58,144.55,0.05216577]
[1749807875260,5.07195772,144.58,144.55,0.05216577]
[1749807875646,6.9143,144.57,144.55,0.05216577]
[1749807876253,5.07195772,144.58,144.55,0.05216577]
[1749807876254,6.9148,144.56,144.55,0.05216577]
[1749807877262,11.98585772,144.58,144.55,6.96736577]
[1749807879259,11.98585772,144.58,144.56,6.9147]
[1749807879565,6.96123673,144.58,144.56,6.9147]
[1749807880657,6.96123673,144.58,144.55,0.05216577]
[1749807880958,0.04733673,144.58,144.55,0.05216577]
[1749807881265,0.04733673,144.58,144.56,6.9145]
[1749807881655,0.04733673,144.58,144.57,6.9143]
[1749807889261,0.04733673,144.58,144.57,11.93892099]
[1749807891858,0.04733673,144.58,144.57,6.9143]
[1749807903884,36.08,144.66,144.61,11.93622099]
[1749807904078,5.62159841,144.65,144.63,5.02462099]
[1749807904286,6.909,144.68,144.64,6.9103]
[1749807904585,5.62813886,144.67,144.65,5.02462099]
[1749807904775,9.3141,144.71,144.67,6.9085]
[1749807904978,0.04367796,144.7,144.68,5.06932742]
[1749807905887,0.04367796,144.7,144.68,11.97782742]
[1749807906074,0.04367796,144.7,144.68,5.06932742]
[1749807906282,0.04367796,144.7,144.69,6.913]
[1749807906677,0.04367796,144.7,144.69,13.821]
[1749807908491,0.04367796,144.7,144.69,6.908]
[1749807908882,36.02,144.78,144.69,5.02462099]
[1749807909086,7.55452959,144.77,144.73,5.02462099]
[1749807909283,2.2766,144.79,144.73,5.02462099]
[1749807909483,7.55462799,144.78,144.74,36.02]
[1749807909688,2.88085671,144.77,144.74,36.02]
[1749807909883,0.04834484,144.77,144.74,36.07155232]
[1749807910497,0.04834484,144.77,144.74,0.05155232]
[1749807910698,7.90360602,144.76,144.74,0.05155232]
[1749807910897,6.9074,144.71,144.68,36.0]
[1749807911201,2.87898503,144.75,144.68,36.0]
[1749807911202,7.28872099,144.75,144.68,41.02462099]
[1749807911693,2.8787629,144.74,144.68,47.93292099]
[1749807911885,7.28872099,144.75,144.68,47.93292099]
[1749807911886,0.048151,144.72,144.7,0.04942329]
[1749807913199,6.9071,144.71,144.7,0.04942329]
[1749807915091,6.955051,144.72,144.7,0.04942329]
[1749807915487,0.048151,144.72,144.7,0.04942329]
[1749807915693,6.9071,144.71,144.7,0.04942329]
[1749807918098,0.048151,144.72,144.7,0.04942329]
[1749807918600,0.048151,144.72,144.71,6.9071]
[1749807918902,0.048151,144.72,144.71,11.93172099]
[1749807919203,0.048151,144.72,144.71,5.02462099]
[1749807920804,0.048151,144.72,144.71,11.93172099]
[1749807921004,0.048151,144.72,144.71,5.02462099]
[1749807921192,0.048151,144.72,144.71,11.93172099]
[1749807922907,0.048151,144.72,144.71,5.02462099]
[1749807923901,0.048151,144.72,144.71,11.93172099]
[1749807929009,0.048151,144.72,144.71,18.84472099]
[1749807929905,0.048151,144.72,144.7,0.04942329]
[1749807930103,0.048151,144.72,144.7,6.96242329]
[1749807930308,6.954951,144.72,144.7,6.96242329]
[1749807930513,6.954951,144.72,144.7,13.86972329]
[1749807931310,6.954951,144.72,144.7,0.04942329]
[1749807931613,6.954951,144.72,144.7,6.96242329]
[1749807932016,0.048151,144.72,144.7,13.87002329]
[1749807932318,0.048151,144.72,144.7,11.98704428]
[1749807932522,0.048151,144.72,144.7,18.89434428]
[1749807932718,0.048151,144.72,144.7,0.04942329]
[1749807934417,6.9071,144.71,144.7,0.04942329]
[1749807934815,6.9081,144.69,144.68,36.0]
[1749807935117,0.048151,144.72,144.68,36.0]
[1749807935621,6.9079,144.7,144.68,36.0]
[1749807935818,0.048151,144.72,144.68,0.04356503]
[1749807935819,5.02462099,144.69,144.68,0.04356503]
[1749807936122,5.02462099,144.69,144.65,42.853]
[1749807936324,7.30112099,144.71,144.65,42.853]
[1749807936521,6.9083,144.69,144.67,6.913]
[1749807937024,6.95403705,144.69,144.67,6.95669915]
[1749807937521,0.04573705,144.69,144.67,6.95669915]
[1749807938225,0.04573705,144.69,144.67,13.86549915]
[1749807938915,6.95383705,144.69,144.67,6.95669915]
[1749807939316,0.04573705,144.69,144.67,13.86539915]
[1749807940419,0.04573705,144.69,144.68,6.9085]
[1749807945222,6.9064,144.73,144.7,6.9071]
[1749807945616,2.2004,144.74,144.7,6.9071]
[1749807945831,9.1064,144.74,144.71,6.9071]
[1749807946327,9.15367512,144.74,144.71,6.95817321]
[1749807947919,9.15367512,144.74,144.72,6.9063]
[1749807947920,2.24767512,144.74,144.72,6.9063]
[1749807948120,0.04727512,144.74,144.72,6.9063]
[1749807948532,0.04727512,144.74,144.71,6.95797321]
[1749807949033,5.07189611,144.74,144.71,0.05107321]
[1749807949226,5.02462099,144.72,144.63,5.02462099]
[1749807949430,5.02462099,144.68,144.63,35.94]
[1749807949629,6.9098,144.66,144.64,6.9102]
[1749807949933,5.02462099,144.66,144.6,433.76]
[1749807950129,5.02462099,144.66,144.61,6.9116]
[1749807950130,6.9112,144.63,144.61,6.9116]
[1749807950336,6.95943891,144.63,144.61,6.95971255]
[1749807950536,0.04823891,144.63,144.61,6.95971255]
[1749807950836,0.04823891,144.63,144.61,0.04811255]
[1749807951628,6.95943891,144.63,144.61,0.04811255]
[1749807951827,0.04823891,144.63,144.61,0.04811255]
[1749807952231,6.95943891,144.63,144.61,0.04811255]
[1749807952432,0.04823891,144.63,144.61,0.04811255]
[1749807953027,6.9114,144.62,144.61,0.04811255]
[1749807960435,5.0728599,144.63,144.57,35.94]
[1749807960738,5.02462099,144.61,144.55,6.9145]
[1749807961542,0.05095306,144.59,144.57,0.04718125]
[1749807961730,6.9137,144.58,144.57,0.04718125]
[1749807966739,6.9147,144.55,144.54,35.9]
[1749807967135,6.9147,144.55,144.53,6.913]
[1749807967740,2.3351,144.62,144.53,11.93762099]
[1749807967939,2.3351,144.62,144.56,5.02462099]
[1749807968143,2.3351,144.62,144.58,5.02462099]
[1749807968345,2.2293,144.63,144.6,5.02462099]
[1749807968647,35.92,144.66,144.6,5.02462099]
[1749807968847,6.9114,144.62,144.61,0.0496149]
[1749807970445,6.9133,144.58,144.57,5.02462099]
[1749807970644,5.02462099,144.63,144.57,5.02462099]
[1749807971251,0.04867815,144.61,144.55,47.85762099]
[1749807971450,6.9131,144.59,144.56,6.914]
[1749807971849,0.04867815,144.61,144.56,6.914]
[1749807972151,0.04867815,144.61,144.55,54.77212099]
[1749807972352,0.04867815,144.61,144.55,47.85762099]
[1749807973854,0.04867815,144.61,144.59,5.02462099]
[1749807974051,35.92,144.66,144.6,6.9123]
[1749807974651,6.9112,144.63,144.6,6.9123]
[1749807975154,6.96379502,144.63,144.6,6.9580251]
[1749807975357,6.9114,144.62,144.6,0.0457251]
[1749807975551,5.07721601,144.63,144.6,0.0457251]
[1749807975749,5.02462099,144.61,144.6,0.0457251]
[1749807975954,11.93642099,144.61,144.6,0.0457251]
[1749807977053,6.9118,144.61,144.6,0.0457251]
[1749807977256,0.05259502,144.63,144.6,0.0457251]
[1749807977759,6.96369502,144.63,144.6,0.0457251]
[1749807978351,6.9114,144.62,144.6,0.0457251]
[1749807978768,0.05259502,144.63,144.6,0.0457251]
[1749807979063,6.9117,144.62,144.6,0.0457251]
[1749807979262,0.05259502,144.63,144.6,0.0457251]
[1749807979562,6.9118,144.61,144.6,0.0457251]
[1749807986157,6.9118,144.61,144.53,2.371]
[1749807986158,6.9147,144.56,144.53,38.251]
[1749807986356,8.60508749,144.59,144.53,38.251]
[1749807986658,6.9152,144.54,144.53,35.88]
[1749807987061,8.60508749,144.59,144.53,35.88]
[1749807987368,0.04621246,144.57,144.53,35.88]
[1749807988263,6.9152,144.54,144.53,35.88]
[1749807989256,6.9157,144.53,144.51,6.9164]
[1749807989455,6.96187813,144.53,144.51,6.9164]
[1749807990052,0.04617813,144.53,144.52,6.9161]
[1749807990253,0.04617813,144.53,144.52,15.52118749]
[1749807990452,2.3328,144.6,144.52,8.60508749]
[1749807990662,6.9136,144.58,144.55,6.9147]
[1749807991357,6.9136,144.58,144.55,6.96167023]
[1749807991663,6.9138,144.57,144.55,0.04697023]
[1749807993965,6.9138,144.57,144.55,6.96167023]
[1749807994670,6.96061875,144.58,144.55,0.04697023]
[1749807995272,6.96061875,144.58,144.55,6.96157023]
[1749807995465,6.9138,144.57,144.55,0.04697023]
[1749807999268,6.9142,144.56,144.55,0.04697023]
[1749808003665,6.914,144.57,144.55,0.04697023]
[1749808003865,0.04711875,144.58,144.55,0.04697023]
[1749808004261,6.9142,144.56,144.55,0.04697023]
[1749808018198,11.93605806,144.56,144.55,7.023e-05]
[1749808018400,11.9384043,144.56,144.55,7.023e-05]
[1749808019105,17.51145457,144.56,144.55,7.023e-05]
[1749808020803,13.8298,144.55,144.44,37.0644023]
[1749808020993,5.0242043,144.51,144.44,37.0644023]
[1749808021194,5.0242043,144.49,144.44,37.0644023]
[1749808021399,5.0242043,144.47,144.41,35.86]
[1749808021610,5.0242043,144.45,144.39,1.20469415]
[1749808021800,6.9213,144.42,144.39,8.12689415]
[1749808022101,0.04634895,144.43,144.41,5.0242043]
[1749808022411,0.04634895,144.43,144.41,42.7811]
[1749808022597,0.04634895,144.43,144.41,35.86]
[1749808022902,5.07055325,144.43,144.36,2.403]
[1749808023097,5.0242043,144.41,144.35,35.86]
[1749808023303,0.05201719,144.39,144.35,35.86]
[1749808023695,6.97471719,144.39,144.35,35.86]
[1749808023899,0.05201719,144.39,144.38,5.03424137]
[1749808025010,0.05201719,144.39,144.38,11.95704137]
[1749808025610,5.03424137,144.45,144.38,5.03424137]
[1749808025907,6.9209,144.43,144.4,5.03424137]
[1749808026294,2.2276,144.46,144.4,5.03424137]
[1749808026499,0.05060248,144.44,144.42,0.04578797]
[1749808026897,6.9204,144.43,144.42,0.04578797]
[1749808028704,0.05060248,144.44,144.36,35.88]
[1749808028903,2.2276,144.46,144.36,35.88]
[1749808028904,43.75164152,144.43,144.36,35.88]
[1749808029107,5.03424137,144.41,144.33,37.08538266]
[1749808029409,40.91424137,144.43,144.37,5.03424137]
[1749808029611,2.2276,144.46,144.39,5.03424137]
[1749808029799,0.05245639,144.44,144.42,6.9208]
[1749808030000,0.05245639,144.44,144.43,5.03424137]
[1749808030905,0.05245639,144.44,144.43,11.95464137]
[1749808031306,0.05245639,144.44,144.43,6.9204]
[1749808031817,35.88,144.5,144.45,6.919]
[1749808032003,35.88,144.5,144.43,8.6203767]
[1749808032312,6.9181,144.48,144.44,6.9198]
[1749808032507,35.88,144.5,144.43,8.6203767]
[1749808032910,0.04777673,144.48,144.45,0.04432086]
[1749808033108,6.96607673,144.48,144.45,6.96352086]
[1749808034817,0.04777673,144.48,144.46,6.919]
[1749808035019,0.04777673,144.48,144.45,44.54469756]
[1749808035207,0.04777673,144.48,144.45,35.92432086]
[1749808035808,6.9188,144.47,144.45,35.92432086]
[1749808038104,0.04777673,144.48,144.45,35.92432086]
[1749808038305,0.04777673,144.48,144.45,44.54469756]
[1749808038822,0.04777673,144.48,144.46,6.9187]
[1749808039005,0.04777673,144.48,144.45,44.54469756]
[1749808039211,0.04777673,144.48,144.47,15.5388767]
[1749808039522,0.04777673,144.48,144.47,8.6203767]
[1749808039718,0.04777673,144.48,144.46,2.3156]
[1749808040416,0.04777673,144.48,144.47,6.9185]
[1749808040811,0.04777673,144.48,144.46,2.3156]
[1749808041118,0.04777673,144.48,144.45,44.54469756]
[1749808041513,0.04777673,144.48,144.46,6.9187]
[1749808041715,0.04777673,144.48,144.45,44.54469756]